[Event "XIX Najdorf Memorial 2019"]
[Site "Warsaw"]
[Date "2019.07.07"]
[Round "2.11"]
[White "Menezes, Christoph"]
[Black "Goslawski, Michal"]
[Result "0-1"]
[ECO "A05"]
[WhiteElo "2413"]
[BlackElo "2091"]
[Annotator "NA"]
[PlyCount "130"]
[EventDate "2019.07.06"]
[EventType "swiss"]
[EventCountry "POL"]
[SourceTitle "playchess.com"]
[Source "ChessBase"]
[SourceQuality "1"]
[TimeControl "40/5400+30:1800+30"]

1. Nf3 {[%emt 0:00:00]} Nf6 {[%emt 0:00:00]} 2. c4 {[%emt 0:00:00]} e6 {[%emt 0:00:00]} 3. Nc3 {[%emt 0:00:08]} d5 {[%emt 0:00:01]} 4. e3 {[%emt 0:00:19]} Nbd7 {[%emt 0:02:29]} 5. b3 {[%emt 0:01:31]} b6 {[%emt 0:00:06]} 6. Bb2 {[%emt 0:06:29]} Bb7 {[%emt 0:00:24]} 7. cxd5 {[%emt 0:01:47]} exd5 {[%emt 0:00:07]} 8. d4 {[%emt 0:01:08]} Bd6 {[%emt 0:01:17]} 9. g3 {[%emt 0:01:36]} O-O {[%emt 0:01:49]} 10. Bg2 {[%emt 0:00:19]} Re8 {[%emt 0:05:48]} 11. O-O {[%emt 0:00:28]} a6 {[%emt 0:00:01]} 12. Ne2 {[%emt 0:04:35]} Ne4 {[%emt 0:16:19]} 13. Nf4 {[%emt 0:06:00]} Qe7 {[%emt 0:04:45]} 14. Nd3 {[%emt 0:03:33]} Rad8 {[%emt 0:03:24]} 15. Rc1 {[%emt 0:03:21]} f6 {[%emt 0:01:42]} 16. Re1 {[%emt 0:02:07]} Qf7 {[%emt 0:07:54]} 17. Rc2 {[%emt 0:06:25]} Nf8 {[%emt 0:09:26]} 18. Qc1 {[%emt 0:03:15]} Qe7 {[%emt 0:02:57]} 19. Rd1 {[%emt 0:04:14]} Ng6 {[%emt 0:08:26]} 20. Nfe1 {[%emt 0:12:53]} h5 {[%emt 0:01:25]} 21. Re2 {[%emt 0:03:09]} h4 {[%emt 0:02:53]} 22. Nf4 {[%emt 0:04:21]} Nxf4 {[%emt 0:00:20]} 23. exf4 {[%emt 0:00:33]} hxg3 {[%emt 0:02:38]} 24. hxg3 {[%emt 0:00:49]} Qf7 {[%emt 0:03:02]} 25. Nc2 {[%emt 0:03:02]} Re7 {[%emt 0:01:59]} 26. Ne3 {[%emt 0:07:21]} g6 {[%emt 0:01:29]} 27. Nf1 {[%emt 0:00:30]} f5 {[%emt 0:01:18]} 28. Nh2 {[%emt 0:00:27]} Qh7 {[%emt 0:02:37]} 29. Nf3 {[%emt 0:09:39]} Qh5 {[%emt 0:05:35]} 30. Ba3 {[%emt 0:01:58]} c5 {[%emt 0:00:53]} 31. Rde1 {[%emt 0:01:20]} Rde8 {[%emt 0:00:30]} 32. Nh4 {[%emt 0:02:30]} Kh7 {[%emt 0:05:59]} 33. Bb2 {[%emt 0:03:46]} Qg4 {[%emt 0:02:01]} 34. Bf3 {[%emt 0:05:24]} Qh3 {[%emt 0:00:07]} 35. Bg2 {[%emt 0:00:04]} Qg4 {[%emt 0:00:03]} 36. Re3 {[%emt 0:01:35]} Kg8 {[%emt 0:03:01]} 37. Nf3 {[%emt 0:00:13]} Rc8 {[%emt 0:01:06]} 38. Qb1 {[%emt 0:01:04]} c4 {[%emt 0:02:43]} 39. bxc4 {[%emt 0:00:53]} dxc4 {[%emt 0:00:31]} 40. Nh2 {[%emt 0:00:00]} Qh5 {[%emt 0:00:00]} 41. f3 {[%emt 0:14:24]} Nd2 {[%emt 0:15:36]} 42. Qc1 {[%emt 0:05:45]} Rh7 {[%emt 0:00:22]} 43. Qxd2 {[%emt 0:04:33]} Qxh2+ {[%emt 0:00:06]} 44. Kf2 {[%emt 0:00:28]} Bd5 {[%emt 0:03:45]} 45. Re6 {[%emt 0:03:06]} Bxe6 {[%emt 0:02:56]} 46. Rxe6 {[%emt 0:00:05]} c3 {[%emt 0:03:37]} 47. Bxc3 {[%emt 0:00:34]} Rhc7 {[%emt 0:00:37]} 48. Re3 {[%emt 0:01:34]} Qh8 {[%emt 0:04:29]} 49. Qe1 {[%emt 0:02:04]} Kf7 {[%emt 0:01:10]} 50. Qd2 {[%emt 0:03:06]} Qf6 {[%emt 0:01:23]} 51. Qb2 {[%emt 0:00:31]} Kg7 {[%emt 0:00:55]} 52. Qb3 {[%emt 0:00:24]} Qf7 {[%emt 0:00:43]} 53. Qb2 {[%emt 0:00:35]} b5 {[%emt 0:01:06]} 54. a3 {[%emt 0:00:16]} Re7 {[%emt 0:00:41]} 55. d5+ {[%emt 0:00:40]} Kg8 {[%emt 0:00:18]} 56. Be5 {[%emt 0:00:32]} Bxe5 {[%emt 0:01:23]} 57. fxe5 {[%emt 0:00:20]} Qxd5 {[%emt 0:00:13]} 58. f4 {[%emt 0:00:13]} Qc5 {[%emt 0:00:14]} 59. Qb3+ {[%emt 0:00:15]} Kg7 {[%emt 0:00:16]} 60. g4 {[%emt 0:00:19]} Qc2+ {[%emt 0:00:25]} 61. Qxc2 {[%emt 0:00:11]} Rxc2+ {[%emt 0:00:07]} 62. Kg3 {[%emt 0:00:02]} Rec7 {[%emt 0:00:40]} 63. gxf5 {[%emt 0:00:18]} gxf5 {[%emt 0:00:22]} 64. Re1 {[%emt 0:00:07]} R7c3+ {[%emt 0:00:36]} 65. Kh2 {[%emt 0:01:05]} Kf8 {[%emt 0:00:11]} 0-1

[Event "XIX Najdorf Memorial 2019"]
[Site "Warsaw"]
[Date "2019.07.07"]
[Round "2.12"]
[White "Roseneck, Jonas"]
[Black "Harazinska, Magdalena"]
[Result "0-1"]
[ECO "B90"]
[WhiteElo "2398"]
[BlackElo "2004"]
[Annotator "NA"]
[PlyCount "64"]
[EventDate "2019.07.06"]
[EventType "swiss"]
[EventCountry "POL"]
[SourceTitle "playchess.com"]
[Source "ChessBase"]
[SourceQuality "1"]
[TimeControl "40/5400+30:1800+30"]

1. e4 {[%emt 0:00:00]} c5 {[%emt 0:00:00]} 2. Nf3 {[%emt 0:00:00]} d6 {[%emt 0:00:00]} 3. d4 {[%emt 0:00:00]} cxd4 {[%emt 0:00:00]} 4. Nxd4 {[%emt 0:00:00]} Nf6 {[%emt 0:00:00]} 5. Nc3 {[%emt 0:00:00]} a6 {[%emt 0:00:00]} 6. f3 {[%emt 0:00:00]} e6 {[%emt 0:00:04]} 7. Be3 {[%emt 0:00:00]} b5 {[%emt 0:00:10]} 8. Qd2 {[%emt 0:00:00]} Bb7 {[%emt 0:00:07]} 9. g4 {[%emt 0:04:03]} Nfd7 {[%emt 0:01:17]} 10. O-O-O {[%emt 0:16:44]} Nb6 {[%emt 0:01:39]} 11. Nb3 {[%emt 0:06:00]} N8d7 {[%emt 0:02:44]} 12. Na5 {[%emt 0:02:27]} Qc7 {[%emt 0:01:29]} 13. a3 {[%emt 0:06:26]} Be7 {[%emt 0:03:59]} 14. g5 {[%emt 0:07:02]} O-O {[%emt 0:04:58]} 15. h4 {[%emt 0:07:27]} Ne5 {[%emt 0:11:32]} 16. Qf2 {[%emt 0:09:44]} Nbc4 {[%emt 0:06:22]} 17. Nxc4 {[%emt 0:03:03]} Nxc4 {[%emt 0:00:43]} 18. Bxc4 {[%emt 0:00:03]} Qxc4 {[%emt 0:00:08]} 19. h5 {[%emt 0:00:26]} a5 {[%emt 0:06:38]} 20. g6 {[%emt 0:06:33]} b4 {[%emt 0:04:03]} 21. Rd4 {[%emt 0:04:28]} Qc6 {[%emt 0:03:54]} 22. axb4 {[%emt 0:00:29]} axb4 {[%emt 0:00:06]} 23. Rxb4 {[%emt 0:00:11]} Ra1+ {[%emt 0:00:38]} 24. Nb1 {[%emt 0:00:01]} d5 {[%emt 0:01:37]} 25. Rb6 {[%emt 0:04:34]} Qc7 26. h6 {[%emt 0:05:05]} fxg6 {[%emt 0:12:52]} 27. hxg7 {[%emt 0:00:01]} Kxg7 {[%emt 0:05:33]} 28. e5 {[%emt 0:07:55]} Rf5 {[%emt 0:07:33]} 29. Rxe6 {[%emt 0:05:45]} d4 {[%emt 0:03:59]} 30. Bxd4 {[%emt 0:03:02]} Bxf3 {[%emt 0:08:04]} 31. Rg1 {[%emt 0:00:44]} Be4 {[%emt 0:02:40]} 32. Qd2 {[%emt 0:00:44]} Bg5 {[%emt 0:01:20]} 0-1

[Event "XIX Najdorf Memorial 2019"]
[Site "Warsaw"]
[Date "2019.07.07"]
[Round "2.12"]
[White "Miroshnichenko, Pavel"]
[Black "Ali Marandi, Cemil Can"]
[Result "1/2-1/2"]
[ECO "D11"]
[WhiteElo "2300"]
[BlackElo "2527"]
[Annotator "ChessBase"]
[PlyCount "116"]
[EventDate "2019.07.06"]
[EventType "swiss"]
[EventCountry "POL"]
[SourceTitle "playchess.com"]
[Source "ChessBase"]
[SourceQuality "1"]
[TimeControl "40/5400+30:1800+30"]

1. d4 {[%emt 0:00:00]} d5 {[%emt 0:01:36]} 2. c4 {[%emt 0:00:00]} c6 {[%emt 0:00:47]} 3. Nf3 {[%emt 0:00:00]} Nf6 {[%emt 0:00:07]} 4. Qb3 {[%emt 0:00:08]} e6 {[%emt 0:00:18]} 5. g3 {[%emt 0:00:59]} Be7 {[%emt 0:01:11]} 6. Bg2 {[%emt 0:00:07]} O-O {[%emt 0:01:16]} 7. O-O {[%emt 0:00:08]} b6 {[%emt 0:02:44]} 8. Nc3 {[%emt 0:04:35]} Ba6 {[%emt 0:02:04]} 9. cxd5 {[%emt 0:01:33]} cxd5 {[%emt 0:01:53]} 10. Bf4 {[%emt 0:05:25]} Nc6 {[%emt 0:01:51]} 11. Rfc1 {[%emt 0:05:45]} Rc8 {[%emt 0:01:06]} 12. Qd1 {[%emt 0:04:27]} b5 {[%emt 0:13:24]} 13. Ne5 {[%emt 0:04:05]} Qb6 {[%emt 0:12:58]} 14. e4 {[%emt 0:13:39]} Nxe5 {[%emt 0:10:06]} 15. Bxe5 {[%emt 0:01:42]} b4 {[%emt 0:05:27]} 16. Na4 {[%emt 0:00:26]} Qd8 {[%emt 0:00:20]} 17. Bxf6 {[%emt 0:06:09]} Bxf6 {[%emt 0:00:11]} 18. Nc5 {[%emt 0:12:37]} Bb5 {[%emt 0:00:26]} 19. exd5 {[%emt 0:02:16]} exd5 {[%emt 0:00:24]} 20. Qd2 {[%emt 0:04:41]} a5 {[%emt 0:03:08]} 21. a3 {[%emt 0:00:30]} bxa3 {[%emt 0:02:35]} 22. Rxa3 {[%emt 0:00:16]} Bg5 {[%emt 0:02:12]} 23. f4 {[%emt 0:00:30]} Bf6 {[%emt 0:00:05]} 24. Rd1 {[%emt 0:03:54]} a4 {[%emt 0:01:39]} 25. Bf1 {[%emt 0:05:01]} Qe8 {[%emt 0:16:24]} 26. Bh3 {[%emt 0:04:30]} Rb8 {[%emt 0:01:01]} 27. b3 {[%emt 0:06:47]} axb3 {[%emt 0:02:19]} 28. Rxb3 {[%emt 0:00:13]} Ra8 {[%emt 0:01:37]} 29. Re3 {[%emt 0:04:26]} Qd8 {[%emt 0:00:47]} 30. Rb1 {[%emt 0:00:36]} Bc6 {[%emt 0:00:48]} 31. Reb3 {[%emt 0:02:42]} Re8 {[%emt 0:01:36]} 32. Rb6 {[%emt 0:01:03]} Ra1 {[%emt 0:00:33]} 33. Bf1 {[%emt 0:01:31]} Rxb1 {[%emt 0:00:37]} 34. Rxb1 {[%emt 0:00:02]} h5 {[%emt 0:01:39]} 35. Kf2 {[%emt 0:01:12]} Qa8 {[%emt 0:03:55]} 36. Qb2 {[%emt 0:01:21]} Qa5 {[%emt 0:00:51]} 37. Nd3 {[%emt 0:01:09]} Qa7 {[%emt 0:04:06]} 38. Ne5 {[%emt 0:02:29]} Bxe5 {[%emt 0:01:52]} 39. fxe5 Rxe5 {[%emt 0:00:28]} 40. Qb6 {[%emt 0:00:00]} Qxb6 {[%emt 0:00:00]} 41. Rxb6 {[%emt 0:02:28]} Re6 {[%emt 0:03:21]} 42. Rb8+ {[%emt 0:07:42]} Re8 {[%emt 0:01:15]} 43. Rxe8+ {[%emt 0:02:08]} Bxe8 {[%emt 0:00:02]} 44. Bg2 {[%emt 0:00:08]} Bc6 {[%emt 0:00:06]} 45. Bf3 {[%emt 0:00:12]} g6 {[%emt 0:00:08]} 46. Ke3 {[%emt 0:00:37]} f6 {[%emt 0:00:42]} 47. h4 {[%emt 0:00:15]} Kf7 {[%emt 0:00:19]} 48. Kf4 {[%emt 0:00:46]} Ke6 {[%emt 0:00:42]} 49. Be2 {[%emt 0:01:00]} Be8 {[%emt 0:00:34]} 50. Bd3 {[%emt 0:05:26]} Kd6 {[%emt 0:00:18]} 51. Ke3 {[%emt 0:03:44]} g5 {[%emt 0:00:28]} 52. Bf5 {[%emt 0:00:20]} Bf7 {[%emt 0:00:46]} 53. Kd2 {[%emt 0:00:59]} Kc6 {[%emt 0:02:00]} 54. Kc3 {[%emt 0:00:31]} Kc7 {[%emt 0:00:23]} 55. Kd2 {[%emt 0:00:49]} Kb6 {[%emt 0:00:33]} 56. Kc3 {[%emt 0:00:08]} Kc6 {[%emt 0:00:13]} 57. Kb4 {[%emt 0:03:52]} Kd6 {[%emt 0:00:11]} 58. Kc3 {[%emt 0:00:01]} Kc6 {[%emt 0:01:37]} 1/2-1/2

[Event "XIX Najdorf Memorial 2019"]
[Site "Warsaw"]
[Date "2019.07.07"]
[Round "2.13"]
[White "Sedlak, Nikola"]
[Black "Adamski, Jan"]
[Result "1-0"]
[ECO "A46"]
[WhiteElo "2586"]
[BlackElo "2183"]
[Annotator "ChessBase"]
[PlyCount "53"]
[EventDate "2019.07.06"]
[EventType "swiss"]
[EventCountry "POL"]
[SourceTitle "playchess.com"]
[Source "ChessBase"]
[SourceQuality "1"]
[TimeControl "40/5400+30:1800+30"]

1. d4 {[%emt 0:06:47]} Nf6 {[%emt 0:00:52]} 2. Nf3 {[%emt 0:00:16]} e6 {[%emt 0:00:40]} 3. e3 {[%emt 0:00:38]} c5 {[%emt 0:01:46]} 4. Bd3 {[%emt 0:00:28]} b6 {[%emt 0:00:57]} 5. O-O {[%emt 0:00:22]} Be7 {[%emt 0:01:03]} 6. c4 {[%emt 0:02:28]} Bb7 {[%emt 0:01:38]} 7. Nc3 {[%emt 0:00:36]} cxd4 {[%emt 0:02:43]} 8. exd4 {[%emt 0:01:08]} d5 {[%emt 0:00:52]} 9. cxd5 {[%emt 0:00:30]} Nxd5 {[%emt 0:00:14]} 10. Ne5 {[%emt 0:00:34]} O-O {[%emt 0:01:03]} 11. Qg4 {[%emt 0:00:51]} Nf6 {[%emt 0:18:40]} 12. Qh4 {[%emt 0:00:40]} Ne4 {[%emt 0:13:16]} 13. Qh3 {[%emt 0:01:30]} Qxd4 {[%emt 0:02:10]} 14. Bf4 {[%emt 0:00:16]} Nf6 {[%emt 0:05:17]} 15. Ne2 {[%emt 0:00:21]} Qa4 {[%emt 0:12:05]} 16. Rfc1 {[%emt 0:06:41]} Na6 {[%emt 0:09:45]} 17. Rc4 {[%emt 0:02:38]} Qe8 {[%emt 0:02:20]} 18. Ng4 {[%emt 0:12:15]} g6 {[%emt 0:02:54]} 19. Nh6+ {[%emt 0:02:47]} Kh8 {[%emt 0:08:03]} 20. Be5 {[%emt 0:00:53]} Nc5 {[%emt 0:00:36]} 21. Rxc5 {[%emt 0:06:12]} bxc5 {[%emt 0:00:57]} 22. Ng4 {[%emt 0:02:10]} Qd8 {[%emt 0:01:16]} 23. Qh4 {[%emt 0:14:23]} Kg7 {[%emt 0:02:04]} 24. Nf4 {[%emt 0:01:02]} Rh8 {[%emt 0:05:52]} 25. Nh5+ {[%emt 0:01:04]} gxh5 {[%emt 0:00:16]} 26. Qg5+ {[%emt 0:00:12]} Kf8 {[%emt 0:00:07]} 27. Qh6+ 1-0

[Event "XIX Najdorf Memorial 2019"]
[Site "Warsaw"]
[Date "2019.07.07"]
[Round "2.13"]
[White "Shyam, Sundar M."]
[Black "Zylka, Stanislaw"]
[Result "1/2-1/2"]
[ECO "A49"]
[WhiteElo "2520"]
[BlackElo "2308"]
[Annotator "ChessBase"]
[PlyCount "153"]
[EventDate "2019.07.06"]
[EventType "swiss"]
[EventCountry "POL"]
[SourceTitle "playchess.com"]
[Source "ChessBase"]
[SourceQuality "1"]
[TimeControl "40/5400+30:1800+30"]

1. d4 {[%emt 0:00:00]} Nf6 {[%emt 0:00:00]} 2. Nf3 {[%emt 0:00:00]} g6 {[%emt 0:00:00]} 3. g3 {[%emt 0:00:00]} Bg7 {[%emt 0:00:00]} 4. Bg2 {[%emt 0:00:00]} O-O {[%emt 0:00:11]} 5. O-O {[%emt 0:00:07]} d5 {[%emt 0:00:04]} 6. c4 {[%emt 0:00:11]} dxc4 {[%emt 0:00:30]} 7. Na3 {[%emt 0:00:07]} c5 {[%emt 0:00:19]} 8. dxc5 {[%emt 0:00:22]} c3 {[%emt 0:00:11]} 9. Nb5 {[%emt 0:00:18]} Na6 {[%emt 0:00:46]} 10. Nxc3 {[%emt 0:00:08]} Nxc5 {[%emt 0:00:23]} 11. Be3 {[%emt 0:00:06]} Nfe4 {[%emt 0:01:53]} 12. Nxe4 {[%emt 0:00:11]} Nxe4 {[%emt 0:00:52]} 13. Bd4 {[%emt 0:00:06]} Bxd4 {[%emt 0:02:12]} 14. Qxd4 {[%emt 0:00:06]} Qxd4 {[%emt 0:00:09]} 15. Nxd4 {[%emt 0:00:04]} Nd6 {[%emt 0:00:11]} 16. Rac1 {[%emt 0:00:16]} Bd7 {[%emt 0:03:58]} 17. Rc7 {[%emt 0:13:31]} Rfd8 {[%emt 0:00:13]} 18. f4 {[%emt 0:00:18]} Rac8 {[%emt 0:03:46]} 19. Rfc1 {[%emt 0:01:08]} Kf8 {[%emt 0:00:59]} 20. R1c3 {[%emt 0:16:57]} Rxc7 {[%emt 0:20:58]} 21. Rxc7 {[%emt 0:00:03]} Bg4 {[%emt 0:04:08]} 22. Kf2 {[%emt 0:13:53]} Rc8 {[%emt 0:07:35]} 23. Rxc8+ {[%emt 0:00:06]} Bxc8 {[%emt 0:00:09]} 24. b3 {[%emt 0:00:02]} Bd7 {[%emt 0:16:07]} 25. e4 {[%emt 0:30:11]} Nb5 {[%emt 0:00:07]} 26. Nxb5 {[%emt 0:00:03]} Bxb5 {[%emt 0:00:06]} 27. e5 {[%emt 0:00:02]} b6 {[%emt 0:00:38]} 28. Ke3 {[%emt 0:00:04]} Ke8 {[%emt 0:09:21]} 29. Kd4 {[%emt 0:09:41]} Kd7 {[%emt 0:01:29]} 30. h4 {[%emt 0:04:36]} Be2 {[%emt 0:03:57]} 31. Be4 {[%emt 0:03:08]} e6 {[%emt 0:02:56]} 32. Ke3 {[%emt 0:01:17]} Bg4 {[%emt 0:04:12]} 33. b4 {[%emt 0:00:05]} h5 {[%emt 0:01:30]} 34. Kd4 {[%emt 0:03:20]} Be2 {[%emt 0:00:43]} 35. a4 {[%emt 0:01:11]} Bd1 {[%emt 0:00:52]} 36. a5 {[%emt 0:00:04]} Be2 {[%emt 0:00:33]} 37. Bg2 {[%emt 0:01:03]} Kc7 {[%emt 0:00:38]} 38. Be4 {[%emt 0:00:31]} Kd7 {[%emt 0:00:09]} 39. Ke3 {[%emt 0:00:52]} Bb5 {[%emt 0:00:31]} 40. Bf3 {[%emt 0:00:00]} Bf1 {[%emt 0:00:00]} 41. Kd4 {[%emt 0:08:37]} Bb5 {[%emt 0:02:31]} 42. axb6 {[%emt 0:02:03]} axb6 {[%emt 0:00:07]} 43. Bd1 {[%emt 0:00:06]} Ke7 {[%emt 0:03:00]} 44. Bb3 {[%emt 0:00:22]} Be2 {[%emt 0:00:42]} 45. Bc4 {[%emt 0:00:54]} Bf3 {[%emt 0:00:45]} 46. Bd3 {[%emt 0:00:37]} Bb7 {[%emt 0:00:58]} 47. Be2 {[%emt 0:00:07]} Kd8 {[%emt 0:00:42]} 48. Bd1 {[%emt 0:01:11]} Ke7 {[%emt 0:00:28]} 49. Be2 {[%emt 0:00:35]} Kd8 {[%emt 0:00:08]} 50. g4 {[%emt 0:00:17]} hxg4 51. Bxg4 {[%emt 0:00:01]} Ke7 {[%emt 0:00:46]} 52. Be2 {[%emt 0:00:41]} Kd8 {[%emt 0:00:26]} 53. Ke3 {[%emt 0:01:45]} Kd7 {[%emt 0:02:20]} 54. Kf2 {[%emt 0:01:17]} Be4 {[%emt 0:01:40]} 55. Kg3 {[%emt 0:01:57]} Bf5 {[%emt 0:04:47]} 56. Bb5+ {[%emt 0:00:03]} Kd8 {[%emt 0:00:41]} 57. Bc6 {[%emt 0:00:22]} Ke7 {[%emt 0:00:21]} 58. Kf3 {[%emt 0:00:09]} Bd3 {[%emt 0:03:07]} 59. Kg4 {[%emt 0:00:10]} Kf8 {[%emt 0:00:12]} 60. Kg5 {[%emt 0:00:10]} Kg7 {[%emt 0:00:11]} 61. Bf3 {[%emt 0:00:32]} Bc2 {[%emt 0:01:47]} 62. h5 {[%emt 0:00:29]} gxh5 {[%emt 0:00:07]} 63. Bxh5 {[%emt 0:00:03]} Bd3 {[%emt 0:01:53]} 64. Bf3 {[%emt 0:00:06]} Bc2 {[%emt 0:00:21]} 65. Bg4 {[%emt 0:00:18]} Bd3 {[%emt 0:00:29]} 66. f5 {[%emt 0:00:42]} exf5 {[%emt 0:00:48]} 67. Bxf5 {[%emt 0:00:02]} Bc4 {[%emt 0:00:12]} 68. Bd7 {[%emt 0:00:17]} Bb3 {[%emt 0:00:48]} 69. Kf5 {[%emt 0:01:42]} Bc2+ {[%emt 0:00:12]} 70. Kf4 {[%emt 0:00:06]} Kf8 {[%emt 0:00:21]} 71. Ke3 {[%emt 0:00:41]} Ke7 {[%emt 0:00:06]} 72. Bg4 {[%emt 0:00:05]} f6 {[%emt 0:02:02]} 73. exf6+ {[%emt 0:00:20]} Kxf6 {[%emt 0:00:02]} 74. Kd4 {[%emt 0:00:01]} Ke7 {[%emt 0:00:23]} 75. Kd5 {[%emt 0:00:20]} Ba4 {[%emt 0:00:10]} 76. Bh3 {[%emt 0:00:27]} Bb5 {[%emt 0:00:10]} 77. Bg4 {[%emt 0:00:08]} 1/2-1/2

[Event "XIX Najdorf Memorial 2019"]
[Site "Warsaw"]
[Date "2019.07.07"]
[Round "2.14"]
[White "Klekowski, Maciej"]
[Black "Kokoszczynski, Jan"]
[Result "1-0"]
[ECO "C09"]
[WhiteElo "2482"]
[BlackElo "2238"]
[Annotator "ChessBase"]
[PlyCount "119"]
[EventDate "2019.07.06"]
[EventType "swiss"]
[EventCountry "POL"]
[SourceTitle "playchess.com"]
[Source "ChessBase"]
[SourceQuality "1"]
[TimeControl "40/5400+30:1800+30"]

1. d4 {[%emt 0:00:00]} e6 {[%emt 0:00:47]} 2. e4 {[%emt 0:02:29]} d5 {[%emt 0:00:08]} 3. Nd2 {[%emt 0:00:05]} c5 {[%emt 0:00:53]} 4. exd5 {[%emt 0:02:07]} exd5 {[%emt 0:00:11]} 5. Ngf3 {[%emt 0:00:03]} Nc6 {[%emt 0:00:11]} 6. Bb5 {[%emt 0:00:56]} Qe7+ {[%emt 0:00:10]} 7. Be2 {[%emt 0:00:21]} Qc7 {[%emt 0:03:00]} 8. O-O {[%emt 0:00:20]} Nf6 {[%emt 0:01:40]} 9. Re1 {[%emt 0:01:25]} Be6 {[%emt 0:01:50]} 10. dxc5 {[%emt 0:03:16]} Bxc5 {[%emt 0:00:18]} 11. Nb3 {[%emt 0:00:02]} Bb6 {[%emt 0:00:29]} 12. Nfd4 {[%emt 0:04:08]} O-O {[%emt 0:02:47]} 13. c3 {[%emt 0:01:59]} Rae8 {[%emt 0:08:16]} 14. Be3 {[%emt 0:02:08]} a6 {[%emt 0:06:42]} 15. Qc1 {[%emt 0:15:13]} Bc8 {[%emt 0:23:43]} 16. Bf4 {[%emt 0:09:11]} Qd8 {[%emt 0:04:17]} 17. Qc2 {[%emt 0:02:57]} Ne4 {[%emt 0:08:27]} 18. Bd3 {[%emt 0:06:57]} Qf6 {[%emt 0:10:37]} 19. Bxe4 {[%emt 0:16:48]} dxe4 {[%emt 0:12:14]} 20. Rxe4 {[%emt 0:01:06]} Nxd4 {[%emt 0:01:17]} 21. Nxd4 {[%emt 0:00:05]} Rxe4 {[%emt 0:00:43]} 22. Qxe4 {[%emt 0:00:05]} Bxd4 {[%emt 0:00:06]} 23. cxd4 {[%emt 0:01:20]} Qe6 {[%emt 0:03:08]} 24. Re1 {[%emt 0:09:00]} Qxe4 {[%emt 0:00:33]} 25. Rxe4 {[%emt 0:00:03]} Be6 {[%emt 0:00:09]} 26. b3 {[%emt 0:00:23]} Rc8 {[%emt 0:01:01]} 27. h3 {[%emt 0:00:19]} h6 {[%emt 0:00:18]} 28. Re2 {[%emt 0:00:41]} Rc3 {[%emt 0:01:17]} 29. Re5 {[%emt 0:00:47]} Rd3 {[%emt 0:01:11]} 30. Be3 {[%emt 0:00:03]} Rd1+ {[%emt 0:00:54]} 31. Kh2 {[%emt 0:00:04]} Kf8 {[%emt 0:04:17]} 32. Rc5 {[%emt 0:00:52]} Ke8 {[%emt 0:01:03]} 33. Kg3 {[%emt 0:00:41]} Kd8 {[%emt 0:02:39]} 34. Kf4 {[%emt 0:02:47]} Kd7 {[%emt 0:00:09]} 35. Ke4 {[%emt 0:00:20]} b6 {[%emt 0:00:11]} 36. Rc2 {[%emt 0:00:15]} f6 {[%emt 0:01:20]} 37. Bd2 {[%emt 0:03:44]} Bg8 {[%emt 0:00:28]} 38. f4 {[%emt 0:01:19]} Kd6 {[%emt 0:00:50]} 39. Bb4+ {[%emt 0:00:35]} Kd7 {[%emt 0:00:01]} 40. f5 {[%emt 0:00:00]} Bh7 {[%emt 0:00:00]} 41. Bd2 {[%emt 0:09:53]} Rf1 {[%emt 0:06:57]} 42. g4 {[%emt 0:00:15]} Rf2 {[%emt 0:13:48]} 43. d5 {[%emt 0:01:40]} g6 {[%emt 0:05:53]} 44. Ke3 {[%emt 0:01:11]} Rh2 {[%emt 0:01:36]} 45. d6 {[%emt 0:00:15]} gxf5 {[%emt 0:04:09]} 46. Rc7+ {[%emt 0:00:10]} Kxd6 {[%emt 0:00:02]} 47. Rxh7 {[%emt 0:00:05]} Rxh3+ {[%emt 0:00:13]} 48. Kf4 {[%emt 0:00:43]} fxg4 {[%emt 0:00:04]} 49. Kxg4 {[%emt 0:00:08]} Rh1 {[%emt 0:00:05]} 50. Rf7 {[%emt 0:01:17]} h5+ {[%emt 0:03:00]} 51. Kf5 {[%emt 0:00:15]} Rf1+ {[%emt 0:00:20]} 52. Bf4+ {[%emt 0:01:05]} Kc5 {[%emt 0:00:01]} 53. Rxf6 {[%emt 0:01:35]} Rf2 {[%emt 0:00:05]} 54. Ke4 {[%emt 0:00:11]} Rxa2 {[%emt 0:00:13]} 55. Be3+ {[%emt 0:00:09]} Kb4 {[%emt 0:00:03]} 56. Rxb6+ {[%emt 0:00:05]} Kc3 {[%emt 0:00:10]} 57. Bd4+ {[%emt 0:00:56]} Kc2 {[%emt 0:00:04]} 58. Kd5 {[%emt 0:01:00]} Kd3 {[%emt 0:01:19]} 59. Rf6 {[%emt 0:00:12]} Ra5+ {[%emt 0:00:23]} 60. Bc5 {[%emt 0:00:04]} 1-0

[Event "XIX Najdorf Memorial 2019"]
[Site "Warsaw"]
[Date "2019.07.07"]
[Round "2.14"]
[White "Bebel, Arkadiusz"]
[Black "Gukesh D"]
[Result "1/2-1/2"]
[ECO "B22"]
[WhiteElo "2290"]
[BlackElo "2520"]
[Annotator "ChessBase"]
[PlyCount "73"]
[EventDate "2019.07.06"]
[EventType "swiss"]
[EventCountry "POL"]
[SourceTitle "playchess.com"]
[Source "ChessBase"]
[SourceQuality "1"]
[TimeControl "40/5400+30:1800+30"]

1. e4 {[%emt 0:00:00]} c5 {[%emt 0:01:43]} 2. c3 {[%emt 0:00:00]} Nf6 {[%emt 0:00:12]} 3. e5 {[%emt 0:00:00]} Nd5 {[%emt 0:00:04]} 4. Nf3 {[%emt 0:00:00]} Nc6 {[%emt 0:00:07]} 5. Bc4 {[%emt 0:00:08]} Nb6 {[%emt 0:01:34]} 6. Bb3 {[%emt 0:00:08]} c4 {[%emt 0:01:17]} 7. Bc2 {[%emt 0:00:09]} Qc7 {[%emt 0:00:05]} 8. Qe2 {[%emt 0:00:13]} g5 {[%emt 0:01:09]} 9. h3 {[%emt 0:00:08]} Bg7 {[%emt 0:00:06]} 10. O-O {[%emt 0:00:25]} Nxe5 {[%emt 0:00:07]} 11. Nxg5 {[%emt 0:00:08]} d5 {[%emt 0:00:49]} 12. a4 {[%emt 0:05:48]} Bd7 {[%emt 0:04:22]} 13. a5 {[%emt 0:07:30]} Nc8 {[%emt 0:00:05]} 14. d4 {[%emt 0:00:31]} cxd3 {[%emt 0:01:32]} 15. Bxd3 {[%emt 0:00:06]} Nd6 {[%emt 0:11:54]} 16. Re1 {[%emt 0:02:26]} O-O-O {[%emt 0:06:34]} 17. Nf3 {[%emt 0:06:05]} Nc6 {[%emt 0:14:12]} 18. a6 {[%emt 0:08:44]} b6 {[%emt 0:11:45]} 19. Na3 {[%emt 0:00:18]} e5 {[%emt 0:00:40]} 20. Nb5 {[%emt 0:07:15]} Nxb5 {[%emt 0:00:09]} 21. Bxb5 {[%emt 0:00:06]} e4 {[%emt 0:00:21]} 22. Bxc6 {[%emt 0:06:50]} Qxc6 {[%emt 0:00:15]} 23. Nd4 {[%emt 0:00:14]} Qg6 {[%emt 0:00:23]} 24. Bf4 {[%emt 0:02:32]} Bxh3 {[%emt 0:22:56]} 25. g3 {[%emt 0:00:37]} h5 {[%emt 0:01:32]} 26. Qb5 {[%emt 0:02:12]} h4 {[%emt 0:02:38]} 27. Rad1 {[%emt 0:14:59]} hxg3 {[%emt 0:01:02]} 28. fxg3 {[%emt 0:00:06]} Rd7 {[%emt 0:03:22]} 29. Nc6 {[%emt 0:02:11]} Qe6 {[%emt 0:02:50]} 30. Rxd5 {[%emt 0:06:51]} Rxd5 {[%emt 0:01:19]} 31. Qxd5 {[%emt 0:00:10]} Qxd5 {[%emt 0:00:47]} 32. Ne7+ {[%emt 0:00:06]} Kd7 {[%emt 0:00:40]} 33. Nxd5 {[%emt 0:00:02]} Be6 {[%emt 0:06:19]} 34. Nc7 {[%emt 0:16:23]} Bc4 {[%emt 0:00:37]} 35. Rxe4 {[%emt 0:00:51]} Bd3 {[%emt 0:00:07]} 36. Re1 {[%emt 0:01:42]} Kc6 {[%emt 0:01:29]} 37. Rd1 {[%emt 0:02:24]} 1/2-1/2